Cogmind - Beta 15 @@@ ROGUE MODE // 2025.07.19 @ 00:46:33 Player: shapeshifter Result: Destroyed by 2Z-WL5(R) with Subdweller Machine Gun Performance ------------- Evolutions (0) 0 Regions Visited (3) 600 Robots Destroyed (14) 70 Value Destroyed (163) 163 Prototype IDs (0) 0 Alien Tech Used (0) 0 Bonus (0) 0 TOTAL SCORE: 833 Bonus ------- None Cogmind --------- Core Integrity 0/250 Matter 300/300 Energy 100/100 System Corruption 0% Temperature Cool (0) Movement Core (200) Ox3 Location -10/Subcaves Parts ------- > --- POWER (1) -------- (None) > --- PROPULSION (2) --- (None) > --- UTILITY (2) ------ Medium Storage Unit Hacking Suite > --- WEAPON (2) ------- (None) > --- INVENTORY (10) --- Light Ion Engine Subdweller Monowheel Large Matter Pod (3) Subdweller Optics Seismic Detector Core Shielding Splice Drone Bay Subdweller Laser Peak State ------------ > --- POWER ------------ Subdweller Power Source > --- PROPULSION ------- Light Treads Light Treads > --- UTILITY ---------- Medium Storage Unit Hacking Suite > --- WEAPON ----------- Assault Rifle Assault Rifle > --- INVENTORY -------- Light Ion Engine Large Matter Pod Seismic Detector Core Shielding Splice Drone Bay Medium Laser [Rating: 11] Favorites ----------- Power Ion Engine Engine Ion Engine Propulsion Light Treads Treads Light Treads Utility Hacking Suite Device Seismic Detector Storage Medium Storage Unit Hackware Hacking Suite Weapon Assault Rifle Energy Gun Medium Laser Ballistic Gun Assault Rifle Build | -11 -10 -10 -10 ------- Run | Yrd Mat Min Sub Slots Evolved . | . . . . Power . | . . . . Propulsion . | . . . . Utility . | . . . . Weapon . | . . . . Parts Attached 12 | 7 2 . 3 Power 3 | 1 . . 2 Engine 3 | 1 . . 2 Core . | . . . . Reactor . | . . . . Propulsion 2 | 2 . . . Treads 2 | 2 . . . Leg . | . . . . Wheel . | . . . . Hover . | . . . . Flight . | . . . . Utility 4 | 2 2 . . Device 1 | 1 . . . Storage 2 | 1 1 . . Processor . | . . . . Hackware 1 | . 1 . . Protection . | . . . . Artifact . | . . . . Weapon 3 | 2 . . 1 Energy Gun 1 | . . . 1 Energy Cannon . | . . . . Ballistic Gun 2 | 2 . . . Ballistic Cannon . | . . . . Launcher . | . . . . Special Weapon . | . . . . Impact Weapon . | . . . . Slashing Weapon . | . . . . Piercing Weapon . | . . . . Special Melee Weapon . | . . . . Unidentified Prototypes . | . . . . Parts Lost 7 | . . . 7 Power 2 | . . . 2 Propulsion 2 | . . . 2 Utility . | . . . . Weapon 3 | . . . 3 Highest Loss Streak 3 | . . . 3 To Critical Strikes . | . . . . Average Backups 5 | 1 3 5 6 Power . | . 1 1 . Propulsion . | . . . . Utility 3 | . 1 3 4 Weapon . | . 1 1 1 Tool/Special . | . . . . Unused Backups 6 | . . . 6 Power . | . . . . Propulsion 1 | . . . 1 Utility 4 | . . . 4 Weapon 1 | . . . 1 Tool/Special . | . . . . Average Slot Usage (%) 96 | . 100 100 94 Engine 13 | . 14 14 12 Treads 26 | . 28 28 25 Storage 14 | . 14 14 14 Hackware 13 | . 12 14 14 Energy Gun 1 | . . . 3 Ballistic Gun 24 | . 28 28 22 Peak Build Rating 11 | 7 9 10 11 Average Rating 9 | 4 8 9 9 On Entrance 6 | . 7 9 10 Naked Turns . | . . . . Heaviest Build 19 | 15 19 19 19 Greatest Support 40 | 40 40 40 40 Greatest Overweight (x) 3 | . . . 3 Average Overweight (x) . | . . . . Largest Inventory Capacity 10 | 8 10 10 10 Average Capacity 9 | 6 8 10 10 Most Carried 9 | 3 5 6 9 Average Carried 5 | 1 3 5 6 Final Capacity 10 | 8 10 10 10 Final Carried 8 | 2 5 6 8 Class Distribution -------------------- 100% | Mutant Dominant Class ---------------- Mutant | -10/Materials Mutant | -10/Mines Mutant | -10/Subcaves Resources | -11 -10 -10 -10 ----------- Run | Yrd Mat Min Sub Matter Collected 495 | 213 197 . 85 Remotely . | . . . . Salvage Created 332 | 51 233 . 48 Parts 29 | 8 19 . 2 Haulers Intercepted . | . . . . Recyclers Shooed 3 | . 3 . . Parts Field Recycled . | . . . . Retrieved Matter . | . . . . Parts Self-Destructed 6 | . . . 6 Prevented . | . . . . Kills | -11 -10 -10 -10 ------- Run | Yrd Mat Min Sub Combat Hostiles Destroyed 7 | . 4 . 3 Guns 7 | . 4 . 3 Classes Destroyed 7 | 1 6 . . Worker 1 | . 1 . . Tunneler 2 | 2 . . . Recycler 1 | . 1 . . Operator 1 | . 1 . . Watcher 2 | . 2 . . Swarmer 6 | . 3 . 3 Grunt 1 | . 1 . . Best Kill Streak 5 | 2 5 . 3 Combat Bots Only 3 | . 3 . 3 Max Kills in Single Turn 2 | 1 2 . 1 Gunslinging . | . . . . Exploded . | . . . . Melee . | . . . . Uniques/NPCs Destroyed . | . . . . Combat | -11 -10 -10 -10 -------- Run | Yrd Mat Min Sub Hostile Shots Fired 116 | . 18 . 98 Missed 44 | . 8 . 36 Hits 72 | . 10 . 62 Projectile 72 | . 10 . 62 Critical Strikes 1 | . . . 1 Damage Taken 1100 | . 90 . 1010 Core 255 | . 36 . 219 Absorbed by Shields . | . . . . Core Remaining (%) 100 | 100 . . . Volleys Fired 41 | 8 21 . 12 Largest 2 | 2 2 . 2 Hottest 70 | 40 40 . 70 Shots Fired 78 | 12 42 . 24 Gun 78 | 12 42 . 24 Cannon . | . . . . Launcher . | . . . . Special . | . . . . Kinetic 69 | 12 42 . 15 Thermal 9 | . . . 9 Explosive . | . . . . Electromagnetic . | . . . . Robot Hit Streak 10 | 6 8 . 10 Robot Miss Streak 5 | 1 3 . 5 Penetration Max . | . . . . Secondary Targets . | . . . . Shots Hit Robots 45 | 8 26 . 11 Core Hits 18 | 2 12 . 4 Critical Kills 1 | . 1 . . Critical Parts Destroyed . | . . . . Critical Strikes 2 | . 1 . 1 Burn 1 | . . . 1 Destroy 1 | . 1 . . Melee Attacks . | . . . . Impact . | . . . . Slashing . | . . . . Piercing . | . . . . Sneak Attacks . | . . . . Combat Hostiles . | . . . . Follow-up Attacks . | . . . . Damage Inflicted 600 | 93 351 . 156 Guns 600 | 93 351 . 156 Cannons . | . . . . Explosions . | . . . . Melee . | . . . . Ramming . | . . . . Kinetic 549 | 93 351 . 105 Thermal 51 | . . . 51 Explosive . | . . . . Electromagnetic . | . . . . Impact . | . . . . Slashing . | . . . . Piercing . | . . . . Highest Corruption . | . . . . Average Corruption . | . . . . Corruption Purged . | . . . . Corruption Blocked . | . . . . Overload Shots . | . . . . Overflow Damage . | . . . . Projectiles . | . . . . Explosions . | . . . . Melee . | . . . . Knockbacks . | . . . . Impact . | . . . . Kinetic . | . . . . Secondary . | . . . . Self-Inflicted Damage . | . . . . Shots . | . . . . Rammed . | . . . . Targets Rammed . | . . . . Kicked . | . . . . Crushed . | . . . . Highest Temperature . | . . . . Average Temperature . | . . . . Received Heat Transfer 108 | . 18 . 90 Siege Activations . | . . . . Martial Activations . | . . . . Shielding Activations . | . . . . Robots Disrupted . | . . . . Combat Hostiles . | . . . . Robots Corrupted . | . . . . Combat Hostiles . | . . . . Parts Fried . | . . . . Impact Corruptions . | . . . . Robots Melted . | . . . . Combat Hostiles . | . . . . Parts Melted . | . . . . Heat Transferred 222 | . . . 222 Parts Sabotaged . | . . . . Parts Stolen . | . . . . Parts Stripped . | . . . . Power Chain Reactions . | . . . . Alert | -11 -10 -10 -10 ------- Run | Yrd Mat Min Sub Maximum Alert Level . | . . . . Low Security (%) 100 | 100 100 100 . Level 1 . | . . . . Level 2 . | . . . . Level 3 . | . . . . Level 4 . | . . . . Level 5 . | . . . . High Security . | . . . . Max Security . | . . . . Peak Influence 68 | 10 68 . . Initial . | . . . . Average 7 | . 16 . . Influence Increases 206 | 10 126 . 70 Destroy 0b10 Robot/C 140 | . 80 . 60 Destroy 0b10 Robot/NC 35 | 10 25 . . Destroy Leader 24 | . 14 . 10 Successful Hack 6 | . 6 . . Destroy Structure 1 | . 1 . . Influence Decreases 206 | 10 126 . 70 Time Decay 198 | 10 126 . 62 Lost Part 8 | . . . 8 Squads Dispatched 1 | . 1 . . Investigation 1 | . 1 . . Extermination . | . . . . Reinforcement . | . . . . Assault . | . . . . Garrison . | . . . . Intercept . | . . . . Searches Triggered . | . . . . Construction Impeded . | . . . . Haulers Reinforced . | . . . . Active Scanning Responses . | . . . . Cargo Convoy Interrupts . | . . . . Stealth | -11 -10 -10 -10 --------- Run | Yrd Mat Min Sub Distress Signals . | . . . . Communications Jammed . | . . . . Distress Signals . | . . . . Times Spotted 15 | . 8 . 7 Peak Tracking Total 3 | . 3 . 3 Tactical Retreats . | . . . . Traps | -11 -10 -10 -10 ------- Run | Yrd Mat Min Sub Traps Triggered 2 | . 1 . 1 Indirectly . | . . . . Trap Hack Attempts . | . . . . Triggered . | . . . . Disarmed . | . . . . Reprogrammed . | . . . . Reused . | . . . . Traps Extracted . | . . . . Installed . | . . . . Triggered . | . . . . Machines | -11 -10 -10 -10 ---------- Run | Yrd Mat Min Sub Machines Disabled . | . . . . Max in Single Turn . | . . . . Machines Repaired . | . . . . Machines Dismantled . | . . . . Machines Sabotaged . | . . . . Overloaded Fab Kills . | . . . . Hacking | -11 -10 -10 -10 --------- Run | Yrd Mat Min Sub Machines Accessed 4 | . 2 1 1 Terminals 2 | . 2 . . Fabricators . | . . . . Repair Stations . | . . . . Recycling Units . | . . . . Scanalyzers . | . . . . Garrison Access . | . . . . Total Hacks 12 | . 6 1 5 Successful 9 | . 3 1 5 Failed 3 | . 3 . . Catastrophic . | . . . . Database Lockouts . | . . . . Manual . | . . . . Terminals 6 | . 6 . . Fabricators . | . . . . Repair Stations . | . . . . Recycling Units . | . . . . Scanalyzers . | . . . . Garrison Access . | . . . . Terminal Hacks 9 | . 3 1 5 Record 6 | . 1 . 5 Open Door 1 | . . 1 . Branch Access Points 1 | . 1 . . Hauler Manifests 1 | . 1 . . Fabricator Hacks . | . . . . Repair Station Hacks . | . . . . Recycling Unit Hacks . | . . . . Scanalyzer . | . . . . Garrison Access Hacks . | . . . . Unauthorized Hacks . | . . . . Terminals . | . . . . Fabricators . | . . . . Repair Stations . | . . . . Recycling Units . | . . . . Scanalyzers . | . . . . Garrison Access . | . . . . Data Cores Recovered 1 | . 1 . . Used . | . . . . Hacking Detections 1 | . 1 . . Full Trace Events 1 | . 1 . . Feedback Events . | . . . . Feedback Blocked . | . . . . Robot Schematics Acquired . | . . . . Robots Built . | . . . . Authchips . | . . . . Time . | . . . . Total Robot Build Rating . | . . . . Part Schematics Acquired . | . . . . Parts Built . | . . . . Authchips . | . . . . Time . | . . . . Total Part Build Rating . | . . . . Parts Repaired . | . . . . Time . | . . . . Parts Recycled . | . . . . Recycled Matter . | . . . . Retrieved Matter . | . . . . Retrieved Components . | . . . . Parts Scanalyzed . | . . . . Part Schematics Acquired . | . . . . Parts Damaged . | . . . . Bothacking | -11 -10 -10 -10 ------------ Run | Yrd Mat Min Sub Used RIF Installer . | . . . . Robots Hacked . | . . . . Non-combat . | . . . . Combat . | . . . . Robot Hacks Applied . | . . . . Relay Couplers Released . | . . . . Fabnet Peak Effective % . | . . . . Robots Rewired . | . . . . Allies Hacked . | . . . . Hacks Repelled . | . . . . Allies | -11 -10 -10 -10 -------- Run | Yrd Mat Min Sub Total Allies . | . . . . Largest Group . | . . . . Highest-Rated Group . | . . . . Highest-Rated Ally . | . . . . Total Orders . | . . . . Ally Attacks . | . . . . Total Damage . | . . . . Kills . | . . . . Allies Corrupted . | . . . . Allies Melted . | . . . . Intel | -11 -10 -10 -10 ------- Run | Yrd Mat Min Sub Active Infowar (turns) 61 | 17 44 . . Seismic 61 | 17 44 . . Robot Analysis Total . | . . . . Derelict Logs Recovered 1 | . . 1 . Drone Launches . | . . . . Drone Recoveries . | . . . . Exploration | -11 -10 -10 -10 ------------- Run | Yrd Mat Min Sub Turns Passed 1767 | 119 401 326 921 Spaces Moved 1000 | 57 207 204 532 Core 31 | 6 . . 25 Treads 969 | 51 207 204 507 Legs . | . . . . Wheels . | . . . . Hover . | . . . . Flight . | . . . . Fastest Speed 50 | 50 160 160 160 Average Speed 160 | 148 160 160 161 Slowest Speed 200 | 160 160 160 200 Overloaded Moves . | . . . . Propulsion Burnouts . | . . . . Robots Hopped . | . . . . Potential Cave-ins . | . . . . Cave-ins Triggered . | . . . . Exploration Rate (%) 35 | 5 33 54 49 Regions Visited 3 Branch Regions 2 Pre-discovered Areas 2 | . . . 2 Known Exits Taken 1 | . 1 . . Unknown Exits Taken 2 | 1 . 1 . Scrap Searched . | . . . . Spaces Dug . | . . . . Terrain Destroyed . | . . . . Melee . | . . . . Projectile . | . . . . AOE . | . . . . Terrain Rammed . | . . . . Walls Destroyed . | . . . . Machines Disabled . | . . . . Actions | -11 -10 -10 -10 --------- Run | Yrd Mat Min Sub Total 1085 | 80 234 204 567 Wait 16 | . . . 16 Move 997 | 56 206 203 532 Hop . | . . . . Pick Up 18 | 9 4 1 4 Fast Attach . | . . . . Attach 9 | 7 . . 2 Detach . | . . . . Swap 3 | . 2 . 1 Drop 1 | . 1 . . Fire 41 | 8 21 . 12 Melee . | . . . . Ram . | . . . . Kick . | . . . . Crush . | . . . . Escape Stasis . | . . . . Rewire . | . . . . Trap . | . . . . Miscellaneous . | . . . . Route ------- -11/Scrapyard -10/Materials -10/Mines (discovered 2 exits: [*Mat] / *Sub) -10/Subcaves History --------- Turn | Location | Event 5 | -11/Scrapyard | Discovered new exit (range 15) 120 | -11/Scrapyard | Entered Materials 166 | -10/Materials | Identified exit to Mines 318 | -10/Materials | Build established: Mutant 521 | -10/Materials | Entered Mines 533 | -10/Mines | Learned location of 2 exits from Materials 537 | -10/Mines | Discovered new exit (range 14) 627 | -10/Mines | Discovered new exit (range 13) 714 | -10/Mines | Found the Drone Emporium 726 | -10/Mines | Found Prototype Device 847 | -10/Mines | Entered Subcaves 848 | -10/Subcaves | Approached by a straggling Scientist 964 | -10/Subcaves | Visited Clippyterm 969 | -10/Subcaves | Learned location of Deep Caves (-7) 969 | -10/Subcaves | Learned location of Extension (-4) 1722 | -10/Subcaves | Core integrity fell below 50% 1748 | -10/Subcaves | Lost 3 parts (1p1n1w) 1754 | -10/Subcaves | Core integrity fell below 20% 1768 | -10/Subcaves | Destroyed by 2Z-WL5(R) with Subdweller Machine Gun Last Messages --------------- 01480_ Subatomizers dissect the Lgt. Ion Engine. 01482_ Assault Rifle destroyed. 01496_ S-10 Pest destroyed. 01501_ Lgt. Ion Engine fries itself beyond repair. 01506_ Subatomizers dissect the Lgt. Ion Engine. 01517_ S-10 Pest suffers critical hit (Burn). 01517_ S-10 Pest destroyed. 01518_ Subatomizers dissect the Lgt. Ion Engine. 01524_ Acquired 11 matter. 01525_ Acquired 17 matter. 01527_ Acquired 20 matter. 01663_ Lgt. Treads destroyed. 01665_ Assault Rifle destroyed. 01682_ XO-0U0(u) tweaks Twisted Machinery. 01697_ Triggered Piercing Trap. 01697_ Spikes shoot up from the floor. 01697_ Sub. Power Source destroyed. 01703_ Med. Laser destroyed. 01717_ Lgt. Treads destroyed. Map ----- +----------------------------------------------------+ | ##??# ### """"#??????????????????????????? | | ##### ### ###"""#??????????????????????????? | | ## ### "##?""?????????####??????????????? | | ## # #" #####????# ##?????????????? | | #### """"#?? ?### #?????????????? | | #### # #?? ## ##????????????? | | ##### #####??# ## #????????????? | | ##??## ##??##### ## ##???????????? | | ##???# ^ ###?# ## ##??????????? | | #????# ### ## #??????????? | | #????## #?????????????? | | ?????# #??????????????? | | ## ## ^ ##??????????????? | | ?## ## ##???????????????? | | ??# # # ^## ###????????????????? | | ?# ?# ## ## ##?????????????????? | | ?? ?## #?# ### ## ###???????????????? | | ??#"""??##??# #?## ## ##??????????????? | | ???# ???????# #??## ### #??????????????? | | ???????????? ##???## ### #??????????????? | | ??????????? # ??????# ##R #??????????????? | | ??????????#### ?????## ##?????????????? | | ????????????? ????## #?????????????? | | ????????????? ???## ###???????????? | | ????????????? ???# ##??????????? | | ?????????????##???? ## @ #??????????? | | ??????????????????? ??# ######## #?????????? | | ?????????????????????# ####??????? ##?????????? | | ?????????????????? #???????????###??????????? | | ??????????????? #?????????????????????????? | | ???????????????## #### ??????????????????????????? | | ????????????????#????#???????????????????????????? | | ?????????????????????????????????????????????????? | | ?????????????????????????????????????????????????? | | ?????????????????????????????????????????????????? | | ?????????????????????????????????????????????????? | | ?????????????????????????????????????????????????? | | ?????????????????????????????????????????????????? | | ?????????????????????????????????????????????????? | | ?????????????????????????????????????????????????? | | ?????????????????????????????????????????????????? | | ?????????????????????????????????????????????????? | | ?????????????????????????????????????????????????? | | ?????????????????????????????????????????????????? | | ?????????????????????????????????????????????????? | | ?????????????????????????????????????????????????? | | ?????????????????????????????????????????????????? | | ?????????????????????????????????????????????????? | | ?????????????????????????????????????????????????? | | ?????????????????????????????????????????????#???? | +----------------------------------------------------+ Best States ------------- Heat Dissipation 25 Energy Generation 15 Energy Capacity 250 Matter Stores 300 Matter Capacity 300 Sight Range 16 Terrain Scan Density 10 Evasion (%) 40 Recoil Reduction 2 Offensive Hacking 10 Item Schematics ----------------- None Robot Schematics ------------------ None Fabricated ------------ Nothing Repaired ---------- Nothing Alien Tech Used ----------------- None Achievements -------------- None Challenges ------------ None Game ------ Seed GrapheneSniperSpoofer Manual? 0 Play Time 00:12:02 Cumulative 9.6 hours Start 2025.07.19 @ 00:34:59 End 2025.07.19 @ 00:46:33 Sessions 1 Manual Loads 0 Difficulty Rogue Special Mode None Game No. 28 Rogue 28 Adventurer 0 Explorer 0 Win Type - Total 0 Types 0/0/0/0/0/0/0/0/0/0 Lore% 13 Gallery% 14 Achievement% 12 Wizard Run 0 Options --------- Layout 1 ASCII 0 Keyboard 0 Movement Mouse Keybinds 0 Fullscreen 1 Font 24/Smallcaps Map View 50x40 Zoom Use 0% Tactical HUD 1 Map Filters NONE Filters NONE Steam 1 RUN: 35fb947a-e157-4603-993c-bc151c77d898